fUST/lending_fUST_20250519
["ID","MTS","AMOUNT","RATE_DAILY","PERIOD"]
[361562690,1747614632300,-160.0,0.0002183,4]
[361562692,1747614632309,-500.0,0.00021877,2]
[361562694,1747614632322,-500.0,0.00021877,2]
[361562696,1747614632331,-3438.42717519,0.000219,6]
[361562698,1747614632340,-500.0,0.00021917,2]
[361562700,1747614632350,-500.0,0.00021917,2]
[361562702,1747614632359,-500.0,0.00021917,2]
[361562704,1747614632368,-500.0,0.00021917,2]
[361562706,1747614632378,-598.28715431,0.00021917,2]
[361562708,1747614632387,-450.0,0.00021917,2]
[361562710,1747614632396,-450.0,0.00021917,2]
[361562712,1747614632405,-450.0,0.00021917,2]
[361562714,1747614632415,-271.532595,0.00021917,2]
[361562716,1747614632424,-3132.8,0.00022,7]
[361562718,1747614632433,-3438.42717512,0.00022038,6]
[361562720,1747614632445,-3438.42717512,0.00022176,6]
[361562722,1747614632454,-935.92631542,0.00022314,7]
[361563071,1747614638096,-194.49764584,0.00021533,2]
[361563072,1747614638106,-194.49764584,0.00021751,2]
[361563073,1747614638123,-459.01069386,0.00021899,2]
[361563074,1747614638137,-2502.5008597,0.00022314,7]
[361563075,1747614638148,-2000.0,0.00022344,2]
[361563076,1747614638157,-495.70951379,0.00022452,7]
[361563077,1747614638170,-2942.71766133,0.00022452,7]
[361563078,1747614638179,-160.0,0.00022486,7]
[361563079,1747614638189,-998.55070715,0.00022486,7]
[361563080,1747614638199,-212.32903618,0.00022486,7]
[361563081,1747614638208,-325.62229792,0.0002259,7]
[361563082,1747614638219,-3112.8048772,0.0002259,7]
[361563083,1747614638229,-2000.0,0.000226,2]
[361563084,1747614638239,-335.964357,0.00022603,2]
[361563085,1747614638248,-278.33896458,0.00022728,7]
[361563194,1747614640245,-404.0,0.00022728,7]
[361563392,1747614643323,-194.49764584,0.00022354,2]
[361563394,1747614643332,-1413.17629105,0.00022728,7]
[361563655,1747614646221,-1342.91191949,0.00022728,7]
[361563658,1747614646231,-217.76336984,0.00022803,2]
[361563660,1747614646241,-2235.0,0.00022812,2]
[361563661,1747614646250,-707.0,0.00022812,2]
[361563663,1747614646260,-404.0,0.00022812,2]
[361563666,1747614646270,-3438.42717512,0.00022866,8]
[361563668,1747614646279,-2500.0,0.00022892,2]
[361563670,1747614646289,-1600.0,0.0002292,2]
[361563671,1747614646298,-160.0,0.00023,3]
[361563673,1747614646308,-160.0,0.00023,3]
[361563675,1747614646317,-327.04022112,0.00023,2]
[361563677,1747614646332,-3438.42717512,0.00023003,8]
[361563680,1747614646342,-3438.42717512,0.00023141,8]
[361563682,1747614646352,-1139.1337586,0.0002326,2]
[361563683,1747614646362,-153.0,0.0002326,2]
[361563685,1747614646371,-340.6580253,0.0002326,2]
[361563687,1747614646381,-213.6678568,0.0002326,2]
[361563689,1747614646390,-153.0,0.0002326,2]
[361563691,1747614646400,-3438.42717512,0.00023279,8]
[361563693,1747614646409,-3438.42717512,0.00023417,9]
[361563695,1747614646419,-3000.0,0.0002344,2]
[361563697,1747614646428,-4704.95,0.000235,7]
[361563699,1747614646438,-3438.42717512,0.00023555,9]
[361563701,1747614646449,-2000.0,0.000236,2]
[361563703,1747614646458,-3438.42717512,0.00023693,9]
[361563705,1747614646468,-160.0,0.00023698,5]
[361563707,1747614646479,-160.0,0.00023698,5]
[361563709,1747614646489,-202.0258361,0.00023808,2]
[361563711,1747614646498,-153.0,0.00023808,2]
[361563713,1747614646507,-3438.42717512,0.00023831,10]
[361563715,1747614646516,-265.07302599,0.000239,2]
[361563717,1747614646525,-3438.42717512,0.00023969,10]
[361563719,1747614646535,-578.97551151,0.00023986,2]
[361563721,1747614646546,-3500.0,0.00023988,2]
[361563723,1747614646556,-1000.0,0.00024,2]
[361563725,1747614646565,-160.0,0.00024,7]
[361563727,1747614646577,-160.0,0.00024,7]
[361563729,1747614646587,-422.53311782,0.00024,7]
[361563731,1747614646596,-1600.0,0.00024016,2]
[361563733,1747614646605,-153.0,0.00024082,2]
[361563735,1747614646614,-153.0,0.00024082,2]
[361563737,1747614646623,-153.0,0.00024082,2]
[361563739,1747614646632,-153.0,0.00024082,2]
[361563740,1747614646642,-153.0,0.00024082,2]
[361563742,1747614646653,-1168.1734054,0.00024082,2]
[361563744,1747614646663,-153.0,0.00024082,2]
[361563746,1747614646673,-153.0,0.00024082,2]
[361563748,1747614646683,-153.0,0.00024082,2]
[361563749,1747614646693,-153.0,0.00024082,2]
[361563750,1747614646704,-153.0,0.00024082,2]
[361563751,1747614646714,-153.0,0.00024082,2]
[361563752,1747614646725,-153.0,0.00024082,2]
[361563753,1747614646736,-153.0,0.00024082,2]
[361563754,1747614646746,-153.0,0.00024082,2]
[361563755,1747614646757,-153.0,0.00024082,2]
[361563756,1747614646768,-153.0,0.00024082,2]
[361563757,1747614646778,-153.0,0.00024082,2]
[361563758,1747614646788,-153.0,0.00024082,2]
[361563759,1747614646802,-153.0,0.00024082,2]
[361563760,1747614646814,-3132.8,0.000241,7]
[361563761,1747614646832,-3438.42717512,0.00024107,10]
[361563762,1747614646842,-454.76202828,0.00024108,2]
[361563763,1747614646852,-500.0,0.00024108,2]
[361563764,1747614646862,-426.8825006,0.00024108,2]
[361563765,1747614646872,-500.0,0.00024108,2]
[361563766,1747614646882,-500.0,0.00024108,2]
[361563767,1747614646892,-500.0,0.00024108,2]
[361563768,1747614646903,-500.0,0.00024108,2]
[361563769,1747614646913,-500.0,0.00024108,2]
[361563770,1747614646924,-500.0,0.00024108,2]
[361563771,1747614646936,-500.0,0.00024108,2]
[361563772,1747614646946,-500.0,0.00024108,2]
[361563773,1747614646957,-500.0,0.00024108,2]
[361563774,1747614646967,-500.0,0.00024108,2]
[361563775,1747614646978,-500.0,0.00024108,2]
[361563776,1747614646987,-500.0,0.00024108,2]
[361563777,1747614646997,-500.0,0.00024108,2]
[361563778,1747614647006,-500.0,0.00024108,2]
[361563779,1747614647016,-500.0,0.00024108,2]
[361563780,1747614647025,-208.60390029,0.00024108,2]
[361563781,1747614647035,-450.0,0.00024109,2]
[361563782,1747614647045,-450.0,0.00024109,2]
[361563783,1747614647055,-450.0,0.00024109,2]
[361563784,1747614647064,-450.0,0.00024109,2]
[361563785,1747614647079,-450.0,0.00024109,2]
[361563786,1747614647089,-450.0,0.00024109,2]
[361563787,1747614647099,-450.0,0.00024109,2]
[361563788,1747614647108,-450.0,0.00024109,2]
[361563789,1747614647118,-450.0,0.00024109,2]
[361563790,1747614647127,-557.52651237,0.00024109,2]
[361563791,1747614647136,-578.97551151,0.00024229,2]
[361563792,1747614647145,-3438.42717512,0.00024245,10]
[361563793,1747614647155,-17162.92136966,0.00024283,3]
[361563794,1747614647165,-6486.5775443,0.00024283,3]
[361563795,1747614647174,-422.53311782,0.00024283,3]
[361563796,1747614647183,-569.459184,0.00024329,2]
[361563797,1747614647192,-153.0,0.00024356,2]
[361563798,1747614647202,-153.0,0.00024356,2]
[361563799,1747614647212,-153.0,0.00024356,2]
[361563800,1747614647222,-153.0,0.00024356,2]
[361563801,1747614647231,-3438.42717512,0.00024383,11]
[361563802,1747614647240,-1000.0,0.000245,2]
[361563803,1747614647250,-15539.08611042,0.000245,2]
[361563804,1747614647259,-3438.42717512,0.00024521,11]
[361563805,1747614647268,-1454.07605376,0.00024536,2]
[361563806,1747614647277,-200.000001,0.00024567,8]
[361563807,1747614647286,-3653.9591102,0.00024576,2]
[361563808,1747614647297,-2000.0,0.000246,2]
[361563809,1747614647307,-119209.5398327,0.000246,7]
[361563810,1747614647316,-422.53311782,0.000246,7]
[361563811,1747614647332,-578.97551153,0.00024643,2]
[361563812,1747614647341,-151.54091347,0.00024651,2]
[361563813,1747614647350,-450.0,0.00024657,2]
[361563814,1747614647360,-450.0,0.00024657,2]
[361563815,1747614647370,-450.0,0.00024657,2]
[361563816,1747614647379,-450.0,0.00024657,2]
[361563817,1747614647390,-450.0,0.00024657,2]
[361563818,1747614647399,-450.0,0.00024657,2]
[361563819,1747614647409,-450.0,0.00024657,2]
[361563820,1747614647419,-450.0,0.00024657,2]
[361563821,1747614647429,-1326.72,0.00024657,2]
[361563822,1747614647439,-380.0,0.00024658,2]
[361563823,1747614647453,-500.0,0.00024658,2]
[361563824,1747614647462,-193.61710989,0.00024658,2]
[361563825,1747614647472,-685.45862756,0.00024658,2]
[361563826,1747614647482,-685.45862756,0.00024658,2]
[361563827,1747614647494,-685.45862756,0.00024658,2]
[361563828,1747614647503,-685.45862756,0.00024658,2]
[361563829,1747614647512,-685.45862756,0.00024658,2]
[361563830,1747614647523,-685.45862756,0.00024658,2]
[361563831,1747614647532,-685.45862756,0.00024658,2]
[361563832,1747614647541,-685.45862756,0.00024658,2]
[361563833,1747614647550,-685.45862756,0.00024658,2]
[361563834,1747614647559,-685.45862756,0.00024658,2]
[361563835,1747614647569,-685.45862756,0.00024658,2]
[361563836,1747614647582,-685.45862756,0.00024658,2]
[361563837,1747614647592,-685.45862756,0.00024658,2]
[361563838,1747614647601,-685.45862756,0.00024658,2]
[361563839,1747614647610,-685.45862756,0.00024658,2]
[361563840,1747614647620,-685.45862756,0.00024658,2]
[361563841,1747614647629,-685.45862756,0.00024658,2]
[361563842,1747614647638,-685.45862756,0.00024658,2]
[361563843,1747614647648,-685.45862756,0.00024658,2]
[361563844,1747614647657,-685.45862756,0.00024658,2]
[361563845,1747614647666,-685.45862756,0.00024658,2]
[361563846,1747614647675,-685.45862756,0.00024658,2]
[361563847,1747614647685,-685.45862756,0.00024658,2]
[361563848,1747614647694,-685.45862756,0.00024658,2]
[361563849,1747614647703,-685.45862756,0.00024658,2]
[361563850,1747614647712,-685.45862756,0.00024658,2]
[361563851,1747614647721,-685.45862756,0.00024658,2]
[361563852,1747614647731,-685.45862756,0.00024658,2]
[361563853,1747614647740,-685.45862756,0.00024658,2]
[361563854,1747614647749,-685.45862756,0.00024658,2]
[361563855,1747614647758,-685.45862756,0.00024658,2]
[361563856,1747614647768,-685.45862756,0.00024658,2]
[361563857,1747614647778,-685.45862756,0.00024658,2]
[361563858,1747614647787,-685.45862756,0.00024658,2]
[361563859,1747614647798,-685.45862756,0.00024658,2]
[361563860,1747614647808,-685.45862756,0.00024658,2]
[361563861,1747614647817,-685.45862756,0.00024658,2]
[361563862,1747614647831,-685.45862756,0.00024658,2]
[361563863,1747614647840,-685.45862756,0.00024658,2]
[361563864,1747614647850,-685.45862756,0.00024658,2]
[361563865,1747614647859,-685.45862756,0.00024658,2]
[361563866,1747614647868,-685.45862756,0.00024658,2]
[361563867,1747614647878,-685.45862756,0.00024658,2]
[361563868,1747614647887,-685.45862756,0.00024658,2]
[361563869,1747614647896,-685.45862756,0.00024658,2]
[361563870,1747614647906,-685.45862756,0.00024658,2]
[361563871,1747614647915,-685.45862756,0.00024658,2]
[361563872,1747614647924,-685.45862756,0.00024658,2]
[361563873,1747614647934,-685.45862756,0.00024658,2]
[361563874,1747614647944,-685.45862756,0.00024658,2]
[361563875,1747614647954,-685.45862756,0.00024658,2]
[361563876,1747614647963,-685.45862756,0.00024658,2]
[361563877,1747614647973,-685.45862756,0.00024658,2]
[361563878,1747614647983,-685.45862756,0.00024658,2]
[361563879,1747614647992,-157.85,0.00024658,2]
[361563880,1747614648002,-3438.42717512,0.00024659,11]
[361563881,1747614648011,-158.0124312,0.00024685,2]
[361563882,1747614648020,-25860.86192886,0.000247,7]
[361563883,1747614648029,-2230.81,0.000247,7]
[361563884,1747614648039,-160.0,0.000247,7]
[361563887,1747614648225,-998.55070715,0.000247,7]
[361563889,1747614648238,-160.0,0.000247,7]
[361563891,1747614648248,-500.0,0.00024773,2]
[361563893,1747614648258,-500.0,0.00024773,2]
[361563895,1747614648268,-600.0,0.00024773,2]
[361563898,1747614648278,-12846.21913598,0.00024774,2]
[361563899,1747614648288,-1000.0,0.00024795,2]
[361563901,1747614648298,-3438.42717512,0.00024797,11]
[361563903,1747614648308,-98811.49476517,0.000248,2]
[361563905,1747614648317,-150044.94649186,0.000248,2]
[361563908,1747614648338,-3672.31292597,0.000248,2]
[361563910,1747614648349,-1463.06412754,0.000248,2]
[361564595,1747615832402,-507.84340404,0.00013027,2]
[361564602,1747615832455,-153.19720396,0.00013027,2]
[361564604,1747615832466,-171.858433,0.00013699,2]
[361564606,1747615832478,-450.09279823,0.00013699,2]
[361564890,1747615838242,-69.27401577,0.00013699,2]
[361564892,1747615838255,-661.040608,0.00013699,2]
[361564894,1747615838268,-532.74088557,0.00015877,2]
[361564896,1747615838280,-300.0,0.000167,2]
[361564898,1747615838292,-682.0,0.000167,2]
[361564900,1747615838304,-300.0,0.000167,2]
[361564901,1747615838316,-2389.56101087,0.00016701,2]
[361564902,1747615838331,-1339.12958699,0.00016701,2]
[361564903,1747615838355,-3716.42330044,0.00016701,2]
[361564904,1747615838366,-12636.50182523,0.00017495,2]
[361564905,1747615838382,-998.55070715,0.00017495,2]
[361564906,1747615838393,-422.53311782,0.00017519,2]
[361564908,1747615838404,-160.0,0.00017519,2]
[361564910,1747615838414,-160.0,0.00017519,2]
[361564911,1747615838424,-50000.0,0.00017519,2]
[361564912,1747615838434,-259.59375836,0.00017783,2]
[361564913,1747615838445,-151.0,0.00017783,2]
[361564914,1747615838455,-151.0,0.00017783,2]
[361564915,1747615838465,-151.0,0.00017783,2]
[361564916,1747615838475,-151.0,0.00017783,2]
[361564917,1747615838484,-151.0,0.00017783,2]
[361564934,1747615838494,-181.59021099,0.00017783,2]
[361564936,1747615838729,-207.4,0.00017783,2]
[361564938,1747615838739,-203.52184149,0.00017795,2]
[361564940,1747615838749,-500.0,0.00017894,2]
[361564942,1747615838759,-500.0,0.00017894,2]
[361564944,1747615838768,-500.0,0.00017894,2]
[361564946,1747615838778,-500.0,0.00017894,2]
[361564947,1747615838788,-500.0,0.00017894,2]
[361564948,1747615838798,-500.0,0.00017894,2]
[361564950,1747615838808,-640.04980692,0.00017894,2]
[361564952,1747615838817,-460.1452956,0.00017894,2]
[361564954,1747615838827,-500.0,0.00017894,2]
[361564957,1747615838836,-500.0,0.00017894,2]
[361564958,1747615838845,-500.0,0.00017894,2]
[361564960,1747615838855,-500.0,0.00017894,2]
[361564962,1747615838864,-537.89557662,0.00017894,2]
[361564964,1747615838876,-500.0,0.00017894,2]
[361564966,1747615838886,-637.0,0.00017894,2]
[361564968,1747615838895,-500.0,0.00017894,2]
[361564970,1747615838904,-561.67595792,0.00017894,2]
[361564972,1747615838914,-546.0,0.00017895,2]
[361564974,1747615838924,-2235.0,0.00017895,2]
[361564976,1747615838934,-707.0,0.00017895,2]
[361564978,1747615838943,-404.0,0.00017895,2]
[361564979,1747615838954,-195.604,0.00017895,2]
[361564981,1747615838965,-239.635,0.00017895,2]
[361564983,1747615838975,-916.91391352,0.000179,2]
[361564985,1747615838985,-916.91391336,0.00018176,2]
[361564987,1747615838994,-916.91391336,0.00018452,2]
[361564990,1747615839008,-500.0,0.000186,2]
[361564991,1747615839018,-881.05062145,0.00018645,2]
[361564993,1747615839027,-916.91391336,0.00018728,2]
[361564995,1747615839036,-582.03546498,0.0001874,2]
[361564997,1747615839047,-500.0,0.0001874,2]
[361564999,1747615839056,-500.0,0.0001874,2]
[361565001,1747615839066,-500.0,0.0001874,2]
[361565003,1747615839076,-500.0,0.0001874,2]
[361565005,1747615839085,-203.52184145,0.00018873,2]
[361565007,1747615839095,-618.50372732,0.000189,2]
[361565009,1747615839105,-500.0,0.00018975,2]
[361565011,1747615839114,-500.0,0.00018975,2]
[361565013,1747615839124,-916.91391336,0.00019003,2]
[361565015,1747615839133,-207.4,0.00019152,2]
[361565017,1747615839143,-450.0,0.00019178,2]
[361565019,1747615839154,-450.0,0.00019178,2]
[361565022,1747615839163,-201.578614,0.00019178,2]
[361565024,1747615839173,-916.91391336,0.00019279,2]
[361565025,1747615839183,-1037.17165691,0.00019523,2]
[361565027,1747615839192,-916.91391336,0.00019555,2]
[361565030,1747615839202,-916.91391336,0.00019831,2]
[361565032,1747615839211,-940.99,0.000199,2]
[361565034,1747615839220,-203.52184145,0.0001995,2]
[361565036,1747615839229,-157.85,0.0002,2]
[361565038,1747615839239,-500.0,0.0002,2]
[361565040,1747615839249,-500.0,0.0002,2]
[361565042,1747615839260,-500.0,0.0002,2]
[361565044,1747615839272,-500.0,0.0002,2]
[361565046,1747615839281,-500.0,0.0002,2]
[361565048,1747615839291,-500.0,0.0002,2]
[361565050,1747615839301,-500.0,0.0002,2]
[361565052,1747615839310,-500.0,0.0002,2]
[361565054,1747615839320,-500.0,0.0002,2]
[361565056,1747615839329,-500.0,0.0002,2]
[361565058,1747615839339,-500.0,0.0002,2]
[361565060,1747615839350,-500.0,0.0002,2]
[361565062,1747615839359,-500.0,0.0002,2]
[361565064,1747615839369,-500.0,0.0002,2]
[361565066,1747615839379,-500.0,0.0002,2]
[361565068,1747615839388,-500.0,0.0002,2]
[361565070,1747615839397,-500.0,0.0002,2]
[361565072,1747615839407,-500.0,0.0002,2]
[361565074,1747615839416,-500.0,0.0002,2]
[361565076,1747615839425,-500.0,0.0002,2]
[361565078,1747615839437,-500.0,0.0002,2]
[361565080,1747615839447,-500.0,0.0002,2]
[361565082,1747615839456,-500.0,0.0002,2]
[361565084,1747615839467,-916.91391336,0.00020107,2]
[361565086,1747615839476,-661.040608,0.00020187,2]
[361565088,1747615839485,-916.91391336,0.00020383,3]
[361565090,1747615839495,-691.225247,0.00020548,2]
[361565092,1747615839504,-1100.0,0.00020587,2]
[361565094,1747615839513,-952.0,0.000206,2]
[361565096,1747615839522,-916.91391336,0.00020659,3]
[361565098,1747615839532,-382.199,0.00020851,2]
[361565100,1747615839543,-2235.0,0.00020895,2]
[361565102,1747615839552,-179.98,0.00020895,2]
[361565104,1747615839562,-404.0,0.00020895,2]
[361565106,1747615839571,-916.91391336,0.00020934,4]
[361565108,1747615839581,-250.96,0.00021,2]
[361565110,1747615839589,-203.52184145,0.00021028,2]
[361565112,1747615839599,-916.91391336,0.0002121,4]
[361565114,1747615839608,-160.0,0.00021357,2]
[361565116,1747615839617,-212.32903618,0.00021421,2]
[361565118,1747615839627,-916.91391336,0.00021486,5]
[361565120,1747615839637,-1100.0,0.00021683,2]
[361565122,1747615839653,-916.91391336,0.00021762,5]
[361565125,1747615839670,-450.0,0.00021917,2]
[361565127,1747615839683,-450.0,0.00021917,2]
[361565129,1747615839693,-597.52280627,0.00021917,2]
[361565131,1747615839702,-916.91391336,0.00022038,6]
[361565133,1747615839712,-203.52184145,0.00022105,2]
[361565135,1747615839722,-916.91391336,0.00022314,7]
[361565137,1747615839731,-916.91391336,0.0002259,7]
[361565139,1747615839740,-201.578614,0.00022603,2]
[361565141,1747615839752,-1100.0,0.00022779,2]
[361565144,1747615839762,-916.91391336,0.00022866,8]
[361565146,1747615839771,-916.91391336,0.00023141,8]
[361565149,1747615839781,-203.52184145,0.00023183,2]
[361565151,1747615839790,-308.4835268,0.0002326,2]
[361565153,1747615839801,-153.0,0.0002326,2]
[361565155,1747615839811,-153.0,0.0002326,2]
[361565158,1747615839820,-153.0,0.00023378,2]
[361565160,1747615839831,-916.91391336,0.00023417,9]
[361565162,1747615839841,-916.91391336,0.00023693,9]
[361565164,1747615839851,-2822.97,0.000238,7]
[361565166,1747615839860,-1100.0,0.00023875,2]
[361565168,1747615839871,-10907.83084174,0.00023888,2]
[361565176,1747615839981,-6491.94835633,0.00023888,2]
[361565177,1747615839993,-920.22,0.00023888,2]
[361565178,1747615840349,-730.31462377,0.00013562,2]
[361565179,1747615840359,-210269.68537623,0.00023888,2]
[361565476,1747615843476,-2443.93130719,0.00023888,2]
[361565951,1747616190919,-196.79187721,0.00011,7]
[361565952,1747616192464,-264.87886817,0.00011,7]
[361565953,1747616195141,-290.70444987,0.00011,7]
[361565954,1747616197787,-421.88584934,0.00011,7]
[361565955,1747616200032,-162.22234367,0.00011,7]
[361565956,1747616202798,-276.49168161,0.00011,7]
[361565957,1747616207101,-279.79451778,0.00011,7]
[361565958,1747616208597,-220.20548222,0.00011,7]
[361565959,1747616210791,-350.90347915,0.00011,7]
[361565960,1747616213595,-267.22938112,0.00011,7]
[361565961,1747616215204,-213.3437845,0.00011,7]
[361565962,1747616216834,-300.0,0.00011,7]
[361565963,1747616218393,-227.7576578,0.00011,7]
[361565964,1747616220072,-334.43021759,0.00011,7]
[361565965,1747616223274,-259.96245117,0.00010999,2]
[361565966,1747616227589,-40.03754883,0.00010999,2]
[361565967,1747616227616,-206.81203763,0.00011,7]
[361565968,1747616232395,-279.36981359,0.00011,7]
[361565969,1747616237015,-383.3934354,0.00011,7]
[361565970,1747616238894,-167.12266569,0.00011,7]
[361565971,1747616241708,-180.8793961,0.00011,7]
[361565972,1747616244469,-208.91177213,0.00011,7]
[361565973,1747616246641,-241.13083432,0.00011,7]
[361565974,1747616248421,-20394.0,0.00011,7]
[361565975,1747616248667,-125.84045511,0.00011,7]
[361565976,1747616469449,-216.0,0.00011846,2]
[361566005,1747617032374,-300.0,0.0001356,2]
[361566008,1747617032383,-203.52184145,0.00013599,2]
[361566011,1747617032392,-300.0,0.00013697,2]
[361566013,1747617032401,-1200.0,0.00013697,2]
[361566015,1747617032410,-300.0,0.00013697,2]
[361566017,1747617032420,-30308.0,0.00013698,2]
[361566019,1747617032429,-619.505041,0.00013699,2]
[361566021,1747617032438,-300.70251687,0.000159,2]
[361566023,1747617032447,-161.407978,0.00015949,2]
[361566024,1747617032455,-161.407978,0.00015969,2]
[361566026,1747617032465,-161.407978,0.00015988,2]
[361566028,1747617032474,-161.407978,0.00016008,2]
[361566030,1747617032483,-161.407978,0.00016028,2]
[361566031,1747617032493,-209.7321652,0.00016132,2]
[361566032,1747617032503,-300.70251679,0.00016245,2]
[361566033,1747617032512,-345.612623,0.00016276,2]
[361566034,1747617032522,-977.4691674,0.00016296,2]
[361566035,1747617032531,-252.61868256,0.0001659,2]
[361566036,1747617032551,-48.08383423,0.0001659,2]
[361566037,1747617032560,-300.70251679,0.00016934,2]
[361566038,1747617032569,-160.0,0.0001718,2]
[361566039,1747617032578,-513.83317548,0.0001718,2]
[361566040,1747617032590,-384.81577874,0.0001718,2]
[361566060,1747617038310,-500.0,0.00016275,2]
[361566061,1747617038319,-500.0,0.00016275,2]
[361566062,1747617038333,-216.13835571,0.00016275,2]
[361566063,1747617038342,-500.0,0.00016275,2]
[361566064,1747617038351,-500.0,0.00016275,2]
[361566065,1747617038361,-290.38674384,0.00016275,2]
[361566066,1747617038372,-500.0,0.00016275,2]
[361566067,1747617038381,-500.0,0.00016275,2]
[361566068,1747617038390,-500.0,0.00016275,2]
[361566069,1747617038399,-500.0,0.00016275,2]
[361566070,1747617038410,-500.0,0.00016275,2]
[361566071,1747617038420,-500.0,0.00016275,2]
[361566072,1747617038430,-523.12702356,0.00016275,2]
[361566073,1747617038439,-307.86933279,0.00016275,2]
[361566074,1747617038448,-362.26697771,0.00016275,2]
[361566075,1747617038457,-500.0,0.00016275,2]
[361566076,1747617038466,-500.0,0.00016275,2]
[361566077,1747617038476,-500.0,0.00016275,2]
[361566078,1747617038487,-500.0,0.00016275,2]
[361566079,1747617038496,-500.0,0.00016275,2]
[361566080,1747617038505,-500.0,0.00016275,2]
[361566081,1747617038517,-500.0,0.00016275,2]
[361566083,1747617038526,-11737.85287101,0.0001718,2]
[361566085,1747617038535,-160.0,0.00017234,2]
[361566087,1747617038545,-422.53311782,0.00017234,2]
[361566089,1747617038554,-160.0,0.00017234,2]
[361566091,1747617038563,-212.32903618,0.00017234,2]
[361566093,1747617038572,-998.55070715,0.00017251,2]
[361566095,1747617038581,-300.70251679,0.00017279,2]
[361566096,1747617038591,-2235.0,0.00017463,2]
[361566097,1747617038600,-404.0,0.00017463,2]
[361566098,1747617038609,-300.70251679,0.00017624,2]
[361566099,1747617038619,-706.0,0.00017895,2]
[361566100,1747617038628,-300.70251679,0.00017969,2]
[361566101,1747617038637,-194.0,0.00018,2]
[361566102,1747617038646,-300.70251679,0.00018314,2]
[361566103,1747617038656,-300.70251679,0.00018659,2]
[361566104,1747617038665,-412.33581821,0.000189,2]
[361566105,1747617038674,-300.70251679,0.00019003,2]
[361566106,1747617038683,-2404.8942993,0.00019007,2]
[361566107,1747617038692,-290.17058503,0.00019078,2]
[361566108,1747617038701,-2203.059,0.00019104,2]
[361566109,1747617038711,-239.12,0.00019178,2]
[361566110,1747617038720,-500.0,0.00019178,2]
[361566111,1747617038729,-398.24494583,0.00019178,2]
[361566112,1747617038739,-450.0,0.00019178,2]
[361566113,1747617038748,-450.0,0.00019178,2]
[361566114,1747617038761,-450.0,0.00019178,2]
[361566115,1747617038770,-168.27293029,0.00019178,2]
[361566116,1747617038779,-450.0,0.00019178,2]
[361566117,1747617038789,-553.30592087,0.00019178,2]
[361566118,1747617038798,-450.0,0.00019178,2]
[361566119,1747617038807,-450.0,0.00019178,2]
[361566120,1747617038817,-450.0,0.00019178,2]
[361566121,1747617038826,-450.0,0.00019178,2]
[361566122,1747617038836,-450.0,0.00019178,2]
[361566123,1747617038846,-450.0,0.00019178,2]
[361566124,1747617038856,-450.0,0.00019178,2]
[361566125,1747617038865,-310.35355871,0.00019178,2]
[361566126,1747617038876,-450.0,0.00019178,2]
[361566127,1747617038886,-450.0,0.00019178,2]
[361566128,1747617038896,-450.0,0.00019178,2]
[361566129,1747617038906,-500.43,0.00019178,2]
[361566130,1747617038915,-450.0,0.00019178,2]
[361566131,1747617038925,-450.0,0.00019178,2]
[361566132,1747617038935,-450.0,0.00019178,2]
[361566133,1747617038945,-450.0,0.00019178,2]
[361566134,1747617038954,-450.0,0.00019178,2]
[361566135,1747617038963,-450.0,0.00019178,2]
[361566136,1747617038973,-450.0,0.00019178,2]
[361566137,1747617038982,-450.0,0.00019178,2]
[361566138,1747617038992,-450.0,0.00019178,2]
[361566139,1747617039001,-479.82949506,0.00019178,2]